bitfinex/quotes_ETHUSD_20250827
["timestamp","ask_amount","ask_price","bid_price","bid_amount"]
[1756324606122,11.17866802,4579.1,4579.0,0.28700001]
[1756324606328,7.44666802,4579.1,4579.0,0.28700001]
[1756324606828,11.17866802,4579.1,4579.0,0.28700001]
[1756324607453,7.44666802,4579.1,4579.0,0.62636186]
[1756324607752,7.44666802,4579.1,4579.0,4.1502448]
[1756324607922,7.44666802,4579.1,4579.0,3.81088295]
[1756324608324,4.07366805,4579.1,4579.0,0.39580001]
[1756324608959,4.07366805,4579.1,4579.0,0.28700001]
[1756324609826,0.34266805,4579.1,4579.0,3.26288295]
[1756324610063,0.34266805,4579.1,4579.0,4.2598269]
[1756324611624,0.34266805,4579.1,4579.0,1.63674396]
[1756324611827,0.34266805,4579.1,4579.0,3.8206269]
[1756324612070,0.13824263,4579.1,4579.0,3.26288295]
[1756324612256,0.34278001,4579.1,4579.0,3.26288295]
[1756324612459,0.34278001,4579.1,4579.0,3.70208295]
[1756324612660,0.34278001,4579.1,4579.0,3.81088295]
[1756324612955,0.22855533,4579.1,4579.0,4.41246905]
[1756324613359,0.024,4579.1,4579.0,4.41246905]
[1756324616255,0.024,4579.1,4579.0,3.97326905]
[1756324616471,0.024,4579.1,4579.0,8.14346905]
[1756324617668,0.024,4579.1,4579.0,3.97326905]
[1756324618044,0.0194627,4579.1,4579.0,3.97326905]
[1756324620370,0.0194627,4579.1,4579.0,3.68626905]
[1756324621368,0.3222627,4579.1,4579.0,1.50238611]
[1756324621572,0.3222627,4579.1,4579.0,0.90080001]
[1756324621871,0.7582627,4579.1,4579.0,0.10880001]
[1756324622171,3.14619898,4579.1,4579.0,1e-08]
[1756324622377,6.26995908,4579.1,4579.0,1e-08]
[1756324622560,5.18388294,4579.0,4578.8,0.02]
[1756324622874,2.40299176,4578.9,4578.8,0.02]
[1756324623046,6.14179176,4578.9,4578.8,0.02]
[1756324623246,6.12683166,4578.9,4578.8,0.02]
[1756324624966,9.85656093,4578.9,4578.8,0.02]
[1756324625856,6.12656093,4578.9,4578.8,0.02]
[1756324626063,0.2038303,4578.9,4578.8,2.50927833]
[1756324626251,0.1108,4579.1,4579.0,0.792]
[1756324626447,0.1108,4579.1,4579.0,2.97588294]
[1756324626647,0.002,4579.1,4579.0,3.28118294]
[1756324627276,0.20583312,4579.1,4579.0,3.28118294]
[1756324627450,0.002,4579.1,4579.0,3.28118294]
[1756324627649,0.002,4579.1,4579.0,3.92068234]
[1756324628174,0.3048,4579.1,4579.0,0.6394994]
[1756324628366,0.002,4579.1,4578.9,2.18391164]
[1756324628970,0.002,4579.1,4578.8,2.99596687]
[1756324629281,0.002,4579.1,4579.0,3.28118294]
[1756324630378,0.002,4579.1,4579.0,3.30302176]
[1756324630583,0.002,4579.1,4579.0,3.89774175]
[1756324630753,0.002,4579.1,4579.0,3.87590293]
[1756324630947,0.0194627,4579.1,4579.0,4.31510293]
[1756324631880,0.0194627,4579.1,4579.0,3.87590293]
[1756324632783,0.0194627,4579.1,4579.0,3.87690293]
[1756324632980,0.0194627,4579.1,4579.0,1.38771999]
[1756324633168,0.0194627,4579.1,4579.0,0.793]
[1756324633483,0.3222627,4579.1,4579.0,0.793]
[1756324633982,0.0194627,4579.1,4579.0,3.28218294]
[1756324634279,0.0194627,4579.1,4579.0,3.72138294]
[1756324635963,0.0194627,4579.1,4579.0,0.001]
[1756324635964,11.45989795,4579.1,4579.0,0.001]
[1756324636258,11.77803081,4579.1,4579.0,0.001]
[1756324636873,8.04803081,4579.1,4579.0,0.001]
[1756324637279,5.20516356,4579.1,4579.0,0.001]
[1756324637656,2.20516356,4579.1,4579.0,0.001]
[1756324638183,1.90236356,4579.1,4579.0,0.001]
[1756324638352,2.21756356,4579.1,4579.0,0.001]
[1756324639082,0.3346627,4579.1,4579.0,0.001]
[1756324639454,0.53849418,4579.1,4579.0,0.001]
[1756324639655,3.90210759,4579.1,4579.0,0.001]
[1756324639857,3.91706769,4579.1,4579.0,0.001]
[1756324641489,5.18388294,4579.0,4578.8,1e-08]
[1756324641784,10.91952221,4578.9,4578.8,1e-08]
[1756324642098,5.18397833,4578.8,4578.7,0.001]
[1756324642291,6.01664722,4578.8,4578.7,0.001]
[1756324642493,6.9111987,4578.8,4578.7,0.001]
[1756324645866,2.18402603,4578.7,4578.6,1e-08]
[1756324646071,6.38512616,4578.7,4578.6,1e-08]
[1756324646271,5.18407373,4578.6,4578.5,1e-08]
[1756324646505,9.4982356,4578.6,4578.5,1e-08]
[1756324646801,10.2816356,4578.6,4578.5,1e-08]
[1756324647577,10.3692206,4578.6,4578.5,1e-08]
[1756324647777,10.99825365,4578.6,4578.5,1e-08]
[1756324648677,2.18421684,4578.3,4578.2,1e-08]
[1756324649013,3.0,4578.2,4577.8,1e-08]
[1756324649171,2.60920769,4577.9,4577.8,1e-08]
[1756324649507,11.50872966,4577.9,4577.8,1e-08]
[1756324649692,12.04957156,4577.9,4577.8,1e-08]
[1756324650587,2.18469403,4577.3,4576.8,0.02]
[1756324650783,9.13328997,4577.3,4576.8,0.02]
[1756324651006,10.53076292,4577.3,4576.8,0.02]
[1756324651310,17.63476289,4577.3,4576.8,0.02]
[1756324651512,17.63476289,4577.3,4576.2,0.001]
[1756324651513,2.18517142,4576.3,4576.2,0.001]
[1756324651808,10.90840726,4576.3,4576.2,0.001]
[1756324652125,11.69180726,4576.3,4576.2,0.001]
[1756324652289,12.49100642,4576.3,4576.2,0.001]
[1756324652483,12.49110188,4576.3,4576.2,0.001]
[1756324653292,12.50856458,4576.3,4576.2,0.001]
[1756324656327,8.31036458,4576.3,4576.2,0.001]
[1756324656636,10.81085512,4576.3,4576.2,0.3093]
[1756324658523,8.6256837,4576.3,4576.2,0.7419]
[1756324658698,10.81085512,4576.3,4576.2,0.7419]
[1756324658898,10.81085512,4576.3,4576.2,0.001]
[1756324658899,11.79728923,4576.3,4576.2,0.001]
[1756324659331,7.28288923,4576.3,4576.2,0.001]
[1756324659499,10.81085512,4576.3,4576.2,0.3093]
[1756324659704,11.01387841,4576.3,4576.2,0.3093]
[1756324660303,11.32907841,4576.3,4576.2,0.001]
[1756324660792,11.01387841,4576.3,4576.2,0.001]
[1756324661417,7.59807841,4576.3,4576.2,0.001]
[1756324661730,11.01387841,4576.3,4576.2,0.3093]
[1756324662028,11.01387841,4576.3,4576.2,0.7419]
[1756324662193,11.01387841,4576.3,4576.2,0.3093]
[1756324662833,10.81085512,4576.3,4576.2,0.3093]
[1756324663043,11.01397778,4576.3,4576.2,0.3093]
[1756324663235,18.11797775,4576.3,4576.2,0.3093]
[1756324663421,18.11804726,4576.3,4576.2,0.7419]
[1756324663737,18.11804726,4576.3,4576.2,0.3093]
[1756324664896,12.20187584,4576.3,4576.2,0.3093]
[1756324665127,18.11804726,4576.3,4576.2,0.3093]
[1756324666344,15.93287584,4576.3,4576.2,0.3093]
[1756324666499,15.93287584,4576.3,4576.2,0.7749]
[1756324666698,18.11804726,4576.3,4576.2,0.3093]
[1756324667142,14.38704726,4576.3,4576.2,0.3093]
[1756324667436,18.11804726,4576.3,4576.2,0.3093]
[1756324667604,14.38704726,4576.3,4576.2,0.3093]
[1756324667807,18.11804726,4576.3,4576.2,0.3093]
[1756324668918,18.32174589,4576.3,4576.2,0.3093]
[1756324669257,18.41014726,4576.3,4576.2,0.001]
[1756324669563,12.40556942,4576.3,4576.2,0.3128]
[1756324669859,16.13656942,4576.3,4576.2,0.7784]
[1756324670357,12.40556942,4576.3,4576.2,0.7784]
[1756324670651,12.73565484,4576.3,4576.2,0.7784]
[1756324670839,12.73565484,4576.3,4576.2,1.29339926]
[1756324671240,0.0174627,4576.3,4576.2,4.27061843]
[1756324671556,0.0174627,4576.3,4576.2,4.38021843]
[1756324671753,3.7484627,4576.3,4576.2,0.93739926]
[1756324671951,3.7484627,4576.3,4576.2,0.888]
[1756324672434,3.7484627,4576.3,4576.2,0.7784]
[1756324673048,3.7484627,4576.3,4576.2,2.96361917]
[1756324673248,3.7484627,4576.3,4576.2,0.7784]
[1756324673958,3.7484627,4576.3,4576.2,2.96361917]
[1756324674357,3.7484627,4576.3,4576.2,0.7784]
[1756324674547,3.95270925,4576.3,4576.2,0.7784]
[1756324676156,3.95170925,4576.3,4576.2,0.7784]
[1756324676339,3.95170925,4576.3,4576.2,2.96361917]
[1756324676958,3.95170925,4576.3,4576.2,0.7784]
[1756324677256,3.95170925,4576.3,4576.2,0.3128]
[1756324677556,0.22170925,4576.3,4576.2,3.21352486]
[1756324679032,0.0174627,4576.3,4576.2,3.21352486]
[1756324679433,0.0174627,4576.3,4576.2,2.74792486]
[1756324679629,0.0174627,4576.3,4576.2,0.56270569]
[1756324679835,4.24380925,4576.3,4576.2,0.001]
[1756324680047,4.79540925,4576.3,4576.2,0.001]
[1756324680467,0.62340925,4576.3,4576.2,0.001]
[1756324680631,7.35342297,4576.3,4576.2,0.3128]
[1756324680976,0.22170925,4576.3,4576.2,3.75561917]
[1756324681274,0.0174627,4576.3,4576.2,4.45941031]
[1756324688495,0.0174627,4576.3,4576.2,8.18841031]
[1756324691174,0.002,4576.7,4576.5,0.792]
[1756324691374,0.002,4576.7,4576.6,4.65145028]
[1756324691676,0.002,4576.7,4576.6,5.6716174]
[1756324691878,0.002,4576.7,4576.6,8.32224558]
[1756324692079,0.002,4576.7,4576.6,7.85664558]
[1756324692678,0.002,4576.7,4576.6,3.81684558]
[1756324692874,0.2941,4576.7,4576.6,6.81462818]
[1756324693082,0.2941,4576.7,4576.6,3.08662818]
[1756324693284,0.2941,4576.7,4576.6,0.1096]
[1756324693498,0.7361,4576.7,4576.6,2.18502818]
[1756324693779,0.002,4576.7,4576.6,2.97702818]
[1756324694008,0.002,4576.7,4576.6,4.17784297]
[1756324695080,0.002,4576.7,4576.6,3.86604297]
[1756324695318,0.002,4576.7,4576.6,4.17784297]
[1756324695480,0.2941,4576.7,4576.6,3.86604297]
[1756324695676,0.002,4576.7,4576.6,4.17784297]
[1756324695936,0.002,4576.7,4576.6,4.28744297]
[1756324696389,0.002,4576.7,4576.6,3.97564297]
[1756324696709,0.2941,4576.7,4576.6,3.97564297]
[1756324697110,0.3443,4576.7,4576.6,3.97564297]
[1756324698412,0.3443,4576.7,4576.5,3.728]
[1756324698413,0.3443,4576.7,4576.4,2.18508865]
[1756324698578,0.4559,4576.6,4576.5,2.18506183]
[1756324698912,0.7675,4576.6,4576.5,2.18506183]
[1756324700800,0.3116,4576.6,4576.5,2.18506183]
[1756324701205,0.7675,4576.6,4576.4,2.18510895]
[1756324701380,0.7675,4576.6,4576.2,0.1106]
[1756324701381,0.66042251,4576.5,4576.2,0.001]
[1756324701714,0.1096,4576.3,4576.2,0.001]
[1756324702015,2.81089393,4576.3,4576.2,0.001]
[1756324702238,6.26679393,4576.3,4576.2,0.001]
[1756324703813,6.06227142,4576.3,4576.2,0.001]
[1756324704004,6.26677949,4576.3,4576.2,0.001]
[1756324704208,7.15220821,4576.3,4576.2,0.001]
[1756324704383,8.83220821,4576.3,4576.2,0.001]
[1756324704712,8.71531414,4576.3,4576.2,0.001]
[1756324704917,8.91983454,4576.3,4576.2,0.001]
[1756324706024,8.91983454,4576.3,4575.8,0.02]
[1756324706025,2.18531468,4576.0,4575.8,0.02]
[1756324706210,9.58802543,4575.9,4575.8,0.02]
[1756324706411,10.34056533,4575.9,4575.8,0.02]
[1756324706724,17.5541653,4575.9,4575.8,0.02]
[1756324707086,17.5541653,4575.9,4575.8,1e-08]
[1756324707627,17.84407288,4575.9,4575.8,1e-08]
[1756324708116,17.5541653,4575.9,4575.8,1e-08]
[1756324708622,5.1854102,4575.8,4575.7,1e-08]
[1756324708927,6.27535932,4575.8,4575.7,1e-08]
[1756324709123,7.04285932,4575.8,4575.7,1e-08]
[1756324709328,14.43676687,4575.8,4575.7,1e-08]
[1756324709896,17.87485929,4575.8,4575.7,1e-08]
[1756324711507,18.16476687,4575.8,4575.7,1e-08]
[1756324711927,18.50683372,4575.8,4575.7,1e-08]
[1756324714212,18.30231332,4575.8,4575.7,1e-08]
[1756324714544,18.50568966,4575.8,4575.7,1e-08]
[1756324714706,18.30231332,4575.8,4575.7,1e-08]
[1756324714909,18.59328815,4575.8,4575.7,1e-08]
[1756324716249,17.96131372,4575.8,4575.7,1e-08]
[1756324716738,14.96131372,4575.8,4575.7,1e-08]
[1756324716942,17.96131372,4575.8,4575.7,1e-08]
[1756324717533,17.50541372,4575.8,4575.7,1e-08]
[1756324718028,18.01151372,4575.8,4575.7,1e-08]
[1756324718340,17.24401372,4575.8,4575.7,1e-08]
[1756324718540,18.01151372,4575.8,4575.7,1e-08]
[1756324718728,18.3014213,4575.8,4575.7,1e-08]
[1756324719340,2.18555349,4575.5,4575.2,0.001]
[1756324719642,11.58039218,4575.4,4575.2,0.001]
[1756324719814,11.56543208,4575.4,4575.2,0.001]
[1756324720013,11.10953208,4575.4,4575.2,0.001]
[1756324720213,10.79793208,4575.4,4575.3,0.2995]
[1756324720453,7.9553608,4575.4,4575.3,0.2995]
[1756324720625,10.79793208,4575.4,4575.3,0.2995]
[1756324721046,11.10953208,4575.4,4575.3,0.001]
[1756324721245,11.56540747,4575.4,4575.3,0.001]
[1756324721585,10.79790747,4575.4,4575.3,0.2995]
[1756324723247,11.10950747,4575.4,4575.3,0.001]
[1756324723448,10.79790747,4575.4,4575.3,0.001]
[1756324723963,11.10950747,4575.4,4575.3,0.001]
[1756324724172,10.79790747,4575.4,4575.3,0.001]
[1756324724372,11.10950747,4575.4,4575.3,0.001]
[1756324724555,11.56540747,4575.4,4575.3,0.001]
[1756324724779,11.56565968,4575.4,4575.3,0.001]
[1756324725146,11.36210125,4575.4,4575.3,0.001]
[1756324725339,18.21281146,4575.4,4575.3,0.001]
[1756324725944,18.66871146,4575.4,4575.3,0.001]
[1756324726139,18.77831146,4575.4,4575.3,0.001]
[1756324726668,2.18579234,4575.0,4574.9,0.001]
[1756324726871,9.64054097,4575.0,4574.9,0.001]
[1756324727074,5.4757477,4574.9,4574.8,1e-08]
[1756324727282,6.11605795,4574.9,4574.8,1e-08]
[1756324727481,6.41065795,4574.9,4574.8,1e-08]
[1756324727877,7.06807595,4574.9,4574.8,1e-08]
[1756324728173,10.79607595,4574.9,4574.8,1e-08]
[1756324728577,10.17906837,4574.9,4574.8,1e-08]
[1756324728951,10.61576837,4574.9,4574.8,1e-08]
[1756324731181,18.00867591,4574.9,4574.8,1e-08]
[1756324732874,16.98746833,4574.9,4574.8,1e-08]
[1756324733072,16.98746833,4574.9,4574.8,0.30550001]
[1756324733278,16.98746833,4574.9,4574.8,0.74480001]
[1756324733895,16.98746833,4574.9,4574.8,0.30550001]
[1756324734188,16.98746833,4574.9,4574.8,0.74480001]
[1756324734672,13.25946833,4574.9,4574.8,0.74480001]
[1756324734877,16.98746833,4574.9,4574.8,0.74480001]
[1756324735068,16.9885223,4574.9,4574.8,0.74480001]
[1756324735274,16.3311043,4574.9,4574.8,0.74480001]
[1756324736078,14.14526418,4574.9,4574.8,0.74480001]
[1756324736447,10.41726418,4574.9,4574.8,0.74480001]
[1756324736687,16.3311043,4574.9,4574.8,0.74480001]
[1756324737051,16.3311043,4574.9,4574.8,0.30550001]
[1756324738097,16.3311043,4574.9,4574.8,0.74480001]
[1756324738574,16.3311043,4574.9,4574.8,0.30550001]
[1756324739455,16.3311043,4574.9,4574.8,0.74480001]
[1756324739839,10.41726418,4574.9,4574.8,1.01938001]
[1756324739954,14.08586418,4574.9,4574.8,1.01938001]
[1756324740353,0.25486422,4574.9,4574.8,3.99726791]
[1756324740584,0.0502,4574.9,4574.8,3.99726791]
[1756324744089,0.0502,4574.9,4574.8,1.37208001]
[1756324744403,0.0502,4574.9,4574.8,1e-08]
[1756324744696,0.25454986,4574.9,4574.8,1e-08]
[1756324744861,0.25454986,4574.9,4574.8,0.30550001]
[1756324745065,3.98154986,4574.9,4574.8,0.30550001]
[1756324746367,9.46198998,4574.9,4574.8,1e-08]
[1756324746768,9.89868998,4574.9,4574.8,1e-08]
[1756324748966,6.17168998,4574.9,4574.8,1e-08]
[1756324749173,9.89868998,4574.9,4574.8,1e-08]
[1756324749391,9.46198998,4574.9,4574.8,1e-08]
[1756324749604,9.89871054,4574.9,4574.8,1e-08]
[1756324750381,10.00831054,4574.9,4574.8,1e-08]
[1756324751917,10.28076242,4574.9,4574.8,1e-08]
[1756324752104,5.1858879,4574.8,4574.7,1e-08]
[1756324752302,2.18598347,4574.6,4574.5,2.0]
[1756324752491,2.18607904,4574.4,4574.3,1e-08]
[1756324752814,7.08640956,4574.4,4574.3,1e-08]
[1756324753018,11.20264946,4574.4,4574.3,1e-08]
[1756324753213,11.63934946,4574.4,4574.3,1e-08]
[1756324753790,12.07864946,4574.4,4574.3,1e-08]
[1756324754928,12.07856244,4574.4,4574.3,1e-08]
[1756324756001,8.35156244,4574.4,4574.3,1e-08]
[1756324756196,8.24196244,4574.4,4574.3,1e-08]
[1756324756382,27.59738501,4574.4,4574.3,1e-08]
[1756324756584,5.18612683,4574.3,4573.8,0.021]
[1756324756784,0.1096,4573.9,4573.8,0.021]
[1756324757017,5.51516152,4573.9,4573.8,0.021]
[1756324757317,9.51970142,4573.9,4573.8,0.021]
[1756324757690,9.95270142,4573.9,4573.8,0.021]
[1756324759241,16.33120138,4573.9,4573.8,0.021]
[1756324759747,10.41688336,4573.9,4573.8,0.3253]
[1756324759947,11.46858336,4573.9,4573.8,0.7586]
[1756324760117,0.6375834,4573.9,4573.8,0.7586]
[1756324760317,3.0,4573.9,4573.8,0.7586]
[1756324760939,3.728,4574.0,4573.8,0.7586]
[1756324761361,6.728,4574.0,4573.9,0.4333]
[1756324761522,6.728,4574.0,4573.9,0.7376]
[1756324761717,3.0,4574.0,4573.9,1.03210366]
[1756324762123,3.0502,4574.0,4573.9,0.7376]
[1756324762446,0.0502,4574.0,4573.9,3.28261802]
[1756324762608,0.0502,4574.0,4573.9,1.5296]
[1756324762805,0.0502,4574.0,4573.9,3.71591802]
[1756324763011,0.0502,4574.0,4573.9,4.30825081]
[1756324764912,0.0502,4574.0,4573.9,0.7376]
[1756324766030,0.0502,4574.0,4573.9,0.3043]
[1756324766344,2.18631802,4573.9,4573.8,0.021]
[1756324766507,5.68289214,4573.9,4573.8,0.021]
[1756324766710,6.11619214,4573.9,4573.8,0.021]
[1756324766905,6.54919214,4573.9,4573.8,0.021]
[1756324767743,13.6521921,4573.9,4573.8,0.021]
[1756324767954,12.9266921,4573.9,4573.8,0.021]
[1756324768314,13.2191921,4573.9,4573.8,0.021]
[1756324768518,16.9461921,4573.9,4573.8,0.021]
[1756324768726,17.3791921,4573.9,4573.8,0.021]
[1756324769153,16.9461921,4573.9,4573.8,0.021]
[1756324769459,16.6536921,4573.9,4573.8,0.021]
[1756324769615,16.6536921,4573.9,4573.8,0.3253]
[1756324769814,14.57697408,4573.9,4573.8,0.3253]
[1756324770156,3.74697412,4573.9,4573.8,0.3253]
[1756324770363,0.002,4574.4,4573.9,0.792]
[1756324770660,0.002,4574.4,4574.3,3.28242683]
[1756324771024,0.002,4574.4,4574.3,3.71572683]
[1756324772319,0.002,4574.4,4574.3,0.3043]
[1756324773124,0.002,4574.4,4574.3,0.7376]
[1756324773746,0.002,4574.4,4574.3,0.3043]
[1756324774254,0.002,4574.4,4574.3,0.7376]
[1756324774460,0.002,4574.4,4574.3,0.3043]
[1756324775317,2.18616631,4574.3,4573.8,0.021]
[1756324775522,0.2043219,4574.2,4573.8,0.021]
[1756324775731,3.727,4574.1,4573.8,0.021]
[1756324775929,0.2043219,4574.2,4573.8,0.021]
[1756324775930,3.727,4574.2,4574.1,0.3043]
[1756324776129,0.002,4574.4,4574.1,1.5296]
[1756324776335,0.002,4574.4,4574.2,0.37158561]
[1756324776519,0.002,4574.4,4574.1,0.3043]
[1756324776957,0.002,4574.4,4574.2,2.61943802]
[1756324777156,0.002,4574.4,4574.2,0.4333]
[1756324777450,0.002,4574.4,4574.3,0.3043]
[1756324777865,0.002,4574.4,4574.3,2.49042683]
[1756324778065,0.002,4574.4,4574.3,2.92372683]
[1756324778260,0.002,4574.4,4574.3,0.81529853]
[1756324778465,0.002,4574.4,4574.3,0.3043]
[1756324778622,0.002,4574.4,4573.8,0.021]
[1756324778824,2.6211211,4574.4,4573.8,0.021]
[1756324779046,0.20431282,4574.3,4573.8,0.021]
[1756324779274,3.93131282,4574.2,4573.8,0.021]
[1756324779560,0.20431282,4574.1,4573.8,0.021]
[1756324779928,0.20431282,4574.1,4574.0,0.3043]
[1756324780129,0.002,4574.4,4574.0,0.3043]
[1756324780331,0.002,4574.4,4574.1,0.4333]
[1756324780548,0.002,4574.4,4574.1,2.61951175]
[1756324780743,0.002,4574.4,4574.3,0.3043]
[1756324780945,0.002,4574.4,4574.3,2.49042683]
[1756324781121,0.002,4574.4,4574.3,3.71572683]
[1756324781325,0.002,4574.4,4573.8,0.021]
[1756324781636,0.002,4574.4,4573.9,0.792]
[1756324781842,0.002,4574.4,4574.3,0.3043]
[1756324782028,0.002,4574.4,4574.3,0.4139]
[1756324782376,0.0522,4574.4,4573.8,0.9226]
[1756324782659,0.0522,4574.4,4573.8,1.05819]
[1756324782860,3.73,4574.3,4573.8,0.021]
[1756324783034,0.1096,4574.2,4573.9,2.18631284]
[1756324783438,0.1096,4574.2,4573.8,2.20736188]
[1756324783840,0.1096,4574.2,4573.8,0.021]
[1756324784170,2.18625923,4574.1,4573.8,0.021]
[1756324784336,5.47881802,4573.9,4573.8,0.021]
[1756324784537,5.79272844,4573.9,4573.8,0.021]
[1756324784744,4.04491042,4573.9,4573.8,0.3253]
[1756324784956,0.31391042,4573.9,4573.8,0.021]
[1756324785271,0.1096,4573.9,4573.8,0.3253]
[1756324785444,0.20431042,4574.0,4573.8,0.7586]
[1756324785764,0.1096,4574.2,4573.8,0.7586]
[1756324785975,0.0522,4574.4,4574.3,0.792]
[1756324786171,0.002,4574.4,4574.3,3.37700555]
[1756324786338,0.002,4574.4,4574.3,4.11460555]
[1756324787283,0.002,4574.4,4574.3,4.09274429]
[1756324787772,0.002,4574.4,4574.3,4.11460555]
[1756324788455,0.002,4575.3,4575.2,2.9776968]
[1756324788649,0.002,4575.3,4575.2,8.02480031]
[1756324788854,0.002,4575.3,4575.2,8.00294335]
[1756324789064,0.002,4575.4,4575.2,8.00294335]
[1756324789065,0.002,4576.3,4575.6,0.792]
[1756324789376,0.002,4576.3,4575.7,2.99931253]
[1756324789541,0.002,4576.3,4575.7,3.30451253]
[1756324789743,0.002,4576.3,4575.7,4.36688687]
[1756324789966,0.002,4576.3,4575.7,8.0820323]
[1756324790170,0.002,4576.3,4574.4,2.65277904]
[1756324790171,0.3153,4575.8,4574.4,2.65277904]
[1756324790339,0.68569584,4575.7,4574.7,2.18592274]
[1756324790672,2.18557239,4575.5,4574.3,2.18608425]
[1756324790872,2.18557239,4575.5,4573.9,0.4667]
[1756324790873,0.67073574,4575.4,4573.9,0.4667]
[1756324791045,3.94803574,4575.3,4574.4,2.18604236]
[1756324791245,3.0,4575.2,4574.2,0.792]
[1756324791446,0.20408877,4575.1,4573.9,2.6529758]
[1756324791675,3.0,4574.9,4573.8,0.021]
[1756324791861,2.18593632,4574.7,4573.8,2.20736575]
[1756324792069,0.21904887,4574.8,4573.8,0.021]
[1756324792070,3.0,4574.5,4573.8,0.021]
[1756324792266,0.2933,4573.9,4573.8,0.021]
[1756324793110,0.4667,4574.4,4573.8,0.021]
[1756324793391,3.743,4574.6,4573.8,0.3262]
[1756324793692,0.20411658,4574.5,4573.8,2.51256405]
[1756324793848,0.20411658,4574.5,4573.8,0.3262]
[1756324794279,0.20411658,4574.5,4573.9,2.18631802]
[1756324794576,0.20411658,4574.5,4573.9,2.18627732]
[1756324794756,0.20411658,4574.5,4574.1,2.18617721]
[1756324795075,0.20411658,4574.5,4573.9,0.43937]
[1756324795278,0.20411658,4574.5,4574.4,0.3052]
[1756324795481,3.0,4574.9,4574.5,0.792]
[1756324795676,0.20410723,4574.8,4573.8,0.021]
[1756324795878,0.2933,4574.6,4574.3,0.1096]
[1756324796286,0.68577773,4574.5,4573.8,0.021]
[1756324796579,0.1096,4574.1,4573.8,0.021]
[1756324796781,0.2933,4573.9,4573.8,0.021]
[1756324797148,0.96415629,4573.9,4573.8,0.021]
[1756324798163,1.05180629,4573.9,4573.8,0.021]
[1756324798371,3.15047431,4573.9,4573.8,0.021]
[1756324798569,6.89847431,4573.9,4573.8,0.021]
[1756324798885,10.99476935,4573.9,4573.8,0.021]
[1756324801067,6.78006935,4573.9,4573.8,0.021]
[1756324801364,10.99376935,4573.9,4573.8,0.021]
[1756324801574,9.89747431,4573.9,4573.8,0.021]
[1756324801752,3.96415629,4573.9,4573.8,0.021]
[1756324801952,7.71115629,4573.9,4573.8,0.021]
[1756324802153,9.89747431,4573.9,4573.8,0.021]
[1756324803172,2.18650923,4573.5,4573.4,1e-08]
[1756324803489,9.15562562,4573.5,4573.4,1e-08]
[1756324803655,9.90066552,4573.5,4573.4,1e-08]
[1756324803852,9.90166552,4573.5,4573.4,1e-08]
[1756324804359,6.15066552,4573.5,4573.4,1e-08]
[1756324804556,9.91426552,4573.5,4573.4,1e-08]
[1756324804759,9.47426552,4573.5,4573.4,1e-08]
[1756324804957,9.99116552,4573.5,4573.4,1e-08]
[1756324805410,3.29150256,4573.5,4573.4,1e-08]
[1756324805562,4.04550256,4573.5,4573.4,2.49175705]
[1756324805764,0.0875,4573.5,4573.4,3.4264028]
[1756324806087,0.0875,4573.5,4573.4,4.2184028]
[1756324807766,0.0875,4573.5,4573.4,0.77314576]
[1756324808098,3.03400923,4573.5,4573.4,1e-08]
[1756324808299,6.03400923,4573.5,4573.4,1e-08]
[1756324808503,6.23792341,4573.5,4573.4,1e-08]
[1756324808705,3.29141418,4573.5,4573.4,1e-08]
[1756324808909,3.0875,4573.5,4573.4,1e-08]
[1756324809207,5.47792012,4573.5,4573.4,1e-08]
[1756324809406,3.2913919,4573.5,4573.4,1e-08]
[1756324809619,3.0875,4573.5,4573.4,1e-08]
[1756324809787,5.56730923,4573.5,4573.4,1e-08]
[1756324809982,7.21917202,4573.5,4573.4,1e-08]
[1756324810973,7.50579057,4573.5,4573.4,1e-08]
[1756324811182,7.50579057,4573.5,4573.3,0.001]
[1756324811183,5.18655704,4573.4,4573.3,1e-08]
[1756324811517,5.18655704,4573.4,4572.4,0.001]
[1756324811518,5.18679612,4572.9,4572.8,1e-08]
[1756324811691,11.12298572,4572.9,4572.8,1e-08]
[1756324811897,11.58968572,4572.9,4572.8,1e-08]
[1756324812215,11.38579612,4572.9,4572.8,1e-08]
[1756324812520,11.58961339,4572.9,4572.8,1e-08]
[1756324812684,12.56988658,4572.9,4572.8,1e-08]
[1756324812890,12.57088658,4572.9,4572.8,1e-08]
[1756324813086,12.65857558,4572.9,4572.8,1e-08]
[1756324813784,13.45057558,4572.9,4572.8,1e-08]
[1756324814022,13.45057558,4572.9,4572.4,1e-08]
[1756324814023,5.28498742,4572.5,4572.4,1e-08]
[1756324814189,12.24780469,4572.5,4572.4,1e-08]
[1756324814389,10.81140469,4572.5,4572.4,1e-08]
[1756324814604,10.01940469,4572.5,4572.4,1e-08]
[1756324815811,10.01888724,4572.5,4572.4,1e-08]
[1756324816131,11.00016043,4572.5,4572.4,1e-08]
[1756324816290,11.00116043,4572.5,4572.4,1e-08]
[1756324817934,12.07977898,4572.5,4572.4,1e-08]
[1756324818750,11.79316043,4572.5,4572.4,1e-08]
[1756324819021,11.20138035,4572.5,4572.4,1e-08]
[1756324820617,27.50421079,4572.5,4572.4,1e-08]
[1756324822937,2.18717875,4572.1,4571.1,0.4544]
[1756324823140,5.29687443,4571.9,4571.1,0.4544]
[1756324823339,12.6031742,4571.9,4571.1,0.4544]
[1756324824314,12.80668602,4571.9,4571.1,0.4544]
[1756324825220,13.09738602,4571.9,4571.4,0.001]
[1756324825421,14.07865921,4571.9,4571.4,0.001]
[1756324825827,13.78795921,4571.9,4571.4,0.001]
[1756324826144,17.59149367,4571.9,4571.4,0.001]
[1756324826641,17.61826118,4571.9,4571.4,0.001]
[1756324827046,17.6182612,4571.9,4571.4,0.001]
[1756324827243,13.8652612,4571.9,4571.4,0.001]
[1756324827425,17.6172612,4571.9,4571.4,0.001]
[1756324827840,17.6162612,4571.9,4571.4,0.001]
[1756324830357,17.9069612,4571.9,4571.4,0.001]